fUSD/lending_fUSD_20250410
["ID","MTS","AMOUNT","RATE_DAILY","PERIOD"]
[357642239,1744263101115,-524.04,0.00040273,2]
[357642240,1744263101124,-500.0,0.00040273,2]
[357642241,1744263101133,-500.0,0.00040273,2]
[357642242,1744263101143,-500.0,0.00040273,2]
[357642243,1744263101152,-506.89,0.00040273,2]
[357642244,1744263101162,-500.0,0.00040273,2]
[357642245,1744263101171,-629.35747525,0.00040273,2]
[357642246,1744263101180,-600.37,0.00040273,2]
[357642247,1744263101189,-540.97,0.00040273,2]
[357642248,1744263101199,-500.0,0.00040273,2]
[357642249,1744263101208,-346.2,0.00040273,2]
[357642250,1744263101217,-500.0,0.00040273,2]
[357642251,1744263101226,-500.0,0.00040273,2]
[357642252,1744263101235,-500.0,0.00040273,2]
[357642253,1744263101244,-500.0,0.00040273,2]
[357642254,1744263101253,-500.0,0.00040273,2]
[357642255,1744263101262,-564.45,0.00040273,2]
[357642256,1744263101271,-639.34,0.00040273,2]
[357642257,1744263101281,-732.06,0.00040273,2]
[357642258,1744263101290,-1095.5,0.00040273,2]
[357642259,1744263101299,-600.48317555,0.00040273,2]
[357642260,1744263101308,-680.52,0.00040273,2]
[357642261,1744263101317,-713.03,0.00040273,2]
[357642262,1744263101326,-500.0,0.00040273,2]
[357642263,1744263101335,-500.0,0.00040273,2]
[357642264,1744263101344,-500.0,0.00040273,2]
[357642265,1744263101354,-500.0,0.00040273,2]
[357642266,1744263101363,-500.0,0.00040273,2]
[357642267,1744263101376,-500.0,0.00040273,2]
[357642268,1744263101386,-953.15,0.00040273,2]
[357642269,1744263101395,-500.0,0.00040273,2]
[357642270,1744263101404,-520.29753658,0.00040273,2]
[357642271,1744263101414,-733.83,0.00040273,2]
[357642272,1744263101423,-500.0,0.00040273,2]
[357642273,1744263101441,-500.0,0.00040273,2]
[357642274,1744263101454,-500.0,0.00040273,2]
[357642275,1744263101465,-500.0,0.00040273,2]
[357642276,1744263101475,-500.0,0.00040273,2]
[357642277,1744263101485,-575.0426265,0.00040273,2]
[357642278,1744263101495,-500.0,0.00040273,2]
[357642279,1744263101504,-1006.39,0.00040273,2]
[357642280,1744263101514,-500.0,0.00040273,2]
[357642281,1744263101524,-500.0,0.00040273,2]
[357642282,1744263101534,-500.0,0.00040273,2]
[357642283,1744263101544,-500.0,0.00040273,2]
[357642284,1744263101554,-773.01,0.00040273,2]
[357642285,1744263101564,-769.58,0.00040273,2]
[357642286,1744263101574,-1427.56,0.00040273,2]
[357642287,1744263101584,-500.0,0.00040273,2]
[357642288,1744263101594,-500.0,0.00040273,2]
[357642289,1744263101604,-500.0,0.00040273,2]
[357642290,1744263101614,-541.16,0.00040273,2]
[357642291,1744263101624,-500.0,0.00040273,2]
[357642292,1744263101633,-1299.27,0.00040273,2]
[357642293,1744263101643,-500.0,0.00040273,2]
[357642294,1744263101652,-500.0,0.00040273,2]
[357642295,1744263101662,-500.0,0.00040273,2]
[357642296,1744263101672,-708.54,0.00040273,2]
[357642297,1744263101682,-795.01,0.00040273,2]
[357642298,1744263101691,-500.0,0.00040273,2]
[357642299,1744263101700,-658.97,0.00040273,2]
[357642300,1744263101710,-993.37,0.00040273,2]
[357642301,1744263101719,-1632.03,0.00040273,2]
[357642302,1744263101729,-594.56,0.00040273,2]
[357642303,1744263101739,-500.0,0.00040273,2]
[357642304,1744263101749,-500.0,0.00040273,2]
[357642305,1744263101758,-578.26,0.00040273,2]
[357642306,1744263101767,-1083.25,0.00040273,2]
[357642307,1744263101777,-964.94,0.00040273,2]
[357642308,1744263101787,-500.0,0.00040273,2]
[357642309,1744263101797,-500.0,0.00040273,2]
[357642310,1744263101806,-1000.0,0.00040273,2]
[357642311,1744263101815,-1105.1,0.00040273,2]
[357642312,1744263101825,-663.92,0.00040273,2]
[357642313,1744263101834,-854.96,0.00040273,2]
[357642314,1744263101843,-500.0,0.00040273,2]
[357642315,1744263101853,-461.86902557,0.00040273,2]
[357642316,1744263101863,-937.5,0.00040273,2]
[357642317,1744263101872,-500.0,0.00040273,2]
[357642318,1744263101882,-500.0,0.00040273,2]
[357642319,1744263101892,-500.0,0.00040273,2]
[357642320,1744263101902,-233.24165999,0.00040273,2]
[357642321,1744263101911,-782.72,0.00040273,2]
[357642322,1744263101921,-500.0,0.00040273,2]
[357642323,1744263101931,-500.0,0.00040273,2]
[357642324,1744263101941,-500.0,0.00040273,2]
[357642325,1744263101951,-500.0,0.00040273,2]
[357642326,1744263101960,-500.0,0.00040273,2]
[357642327,1744263101970,-740.93,0.00040273,2]
[357642328,1744263101980,-1260.52,0.00040273,2]
[357642329,1744263101989,-905.18,0.00040273,2]
[357642330,1744263101999,-500.0,0.00040273,2]
[357642331,1744263102008,-500.0,0.00040273,2]
[357642332,1744263102018,-500.0,0.00040273,2]
[357642333,1744263102027,-1750.92,0.00040273,2]
[357642334,1744263102036,-699.82,0.00040273,2]
[357642335,1744263102046,-1065.92,0.00040273,2]
[357642336,1744263102055,-500.0,0.00040273,2]
[357642337,1744263102064,-553.41,0.00040273,2]
[357642338,1744263102074,-500.0,0.00040273,2]
[357642339,1744263102083,-500.0,0.00040273,2]
[357642340,1744263102093,-500.0,0.00040273,2]
[357642341,1744263102103,-500.0,0.00040273,2]
[357642342,1744263102113,-2100.96,0.00040273,2]
[357642343,1744263102123,-500.0,0.00040273,2]
[357642344,1744263102132,-506.38,0.00040273,2]
[357642345,1744263102141,-500.0,0.00040273,2]
[357642346,1744263102151,-500.0,0.00040273,2]
[357642347,1744263102160,-699.01,0.00040273,2]
[357642348,1744263102170,-619.1,0.00040273,2]
[357642349,1744263102179,-618.83,0.00040273,2]
[357642350,1744263102189,-1260.45,0.00040273,2]
[357642351,1744263102199,-500.0,0.00040273,2]
[357642352,1744263102209,-500.0,0.00040273,2]
[357642353,1744263102218,-500.0,0.00040273,2]
[357642354,1744263102228,-629.12,0.00040273,2]
[357642355,1744263102237,-500.0,0.00040273,2]
[357642356,1744263102246,-500.0,0.00040273,2]
[357642357,1744263102256,-901.87,0.00040273,2]
[357642358,1744263102265,-1535.2,0.00040273,2]
[357642359,1744263102274,-500.0,0.00040273,2]
[357642360,1744263102283,-2036.28,0.00040273,2]
[357642361,1744263102293,-500.0,0.00040273,2]
[357642362,1744263102303,-592.98,0.00040273,2]
[357642363,1744263102312,-1592.0,0.00040273,2]
[357642364,1744263102322,-547.28,0.00040273,2]
[357642365,1744263102331,-913.24,0.00040273,2]
[357642366,1744263102340,-522.51,0.00040273,2]
[357642367,1744263102350,-500.0,0.00040273,2]
[357642368,1744263102360,-500.0,0.00040273,2]
[357642369,1744263102373,-500.0,0.00040273,2]
[357642370,1744263102383,-1171.35,0.00040273,2]
[357642371,1744263102392,-500.0,0.00040273,2]
[357642372,1744263102401,-1033.06,0.00040273,2]
[357642373,1744263102411,-1595.19,0.00040273,2]
[357642374,1744263102420,-961.33630051,0.00040273,2]
[357642375,1744263102429,-500.0,0.00040273,2]
[357642376,1744263102439,-500.0,0.00040273,2]
[357642377,1744263102448,-500.0,0.00040273,2]
[357642378,1744263102458,-500.0,0.00040273,2]
[357642379,1744263102467,-500.0,0.00040273,2]
[357642380,1744263102477,-584.7,0.00040273,2]
[357642381,1744263102487,-1947.41,0.00040273,2]
[357642382,1744263102496,-500.0,0.00040273,2]
[357642383,1744263102506,-500.0,0.00040273,2]
[357642384,1744263102515,-500.0,0.00040273,2]
[357642385,1744263102524,-926.43,0.00040273,2]
[357642386,1744263102534,-500.0,0.00040273,2]
[357642387,1744263102544,-500.0,0.00040273,2]
[357642388,1744263102553,-500.0,0.00040273,2]
[357642389,1744263102562,-610.03,0.00040273,2]
[357642390,1744263102572,-981.36,0.00040273,2]
[357642391,1744263102581,-500.0,0.00040273,2]
[357642392,1744263102591,-793.73,0.00040273,2]
[357642393,1744263102601,-727.92,0.00040273,2]
[357642394,1744263102616,-683.98,0.00040273,2]
[357642395,1744263102626,-500.0,0.00040273,2]
[357642396,1744263102635,-501.14016049,0.00040273,2]
[357642397,1744263102645,-573.05,0.00040273,2]
[357642398,1744263102654,-653.48,0.00040273,2]
[357642399,1744263102664,-500.0,0.00040273,2]
[357642400,1744263102673,-500.0,0.00040273,2]
[357642401,1744263102682,-872.19,0.00040273,2]
[357642402,1744263102692,-585.0,0.00040273,2]
[357642403,1744263102702,-500.0,0.00040273,2]
[357642404,1744263102712,-578.0,0.00040273,2]
[357642405,1744263102721,-1098.43,0.00040273,2]
[357642406,1744263102730,-557.08,0.00040273,2]
[357642407,1744263102739,-500.0,0.00040273,2]
[357642408,1744263102748,-500.0,0.00040273,2]
[357642409,1744263102758,-500.0,0.00040273,2]
[357642410,1744263102768,-775.81,0.00040273,2]
[357642411,1744263102778,-500.0,0.00040273,2]
[357642412,1744263102787,-500.0,0.00040273,2]
[357642413,1744263102798,-151.0,0.00040273,14]
[357642414,1744263102808,-827.44,0.00040273,2]
[357642415,1744263102818,-500.0,0.00040273,2]
[357642416,1744263102829,-2624.4,0.00040273,2]
[357642417,1744263102839,-2889.02,0.00040273,2]
[357642418,1744263102850,-500.0,0.00040273,2]
[357642419,1744263102866,-500.0,0.00040273,2]
[357642420,1744263102876,-500.0,0.00040273,2]
[357642421,1744263102887,-595.49,0.00040273,2]
[357642422,1744263102898,-1057.22,0.00040273,2]
[357642423,1744263102909,-208.352474,0.00040273,14]
[357642424,1744263102920,-151.0,0.00040273,14]
[357642425,1744263102930,-208.352474,0.00040273,14]
[357642426,1744263102940,-547.12,0.00040273,2]
[357642427,1744263102950,-500.0,0.00040273,2]
[357642428,1744263102960,-1644.09,0.00040273,2]
[357642429,1744263102970,-535.22,0.00040273,2]
[357642430,1744263102984,-583.46777351,0.00040273,2]
[357642431,1744263102993,-727.43,0.00040273,2]
[357642432,1744263103004,-799.77,0.00040273,2]
[357642433,1744263103014,-500.0,0.00040273,2]
[357642434,1744263103024,-959.4,0.00040273,2]
[357642435,1744263103034,-1648.43,0.00040273,2]
[357642436,1744263103044,-738.51,0.00040273,2]
[357642437,1744263103054,-608.9,0.00040273,2]
[357642438,1744263103064,-500.0,0.00040273,2]
[357642439,1744263103074,-699.08,0.00040273,2]
[357642440,1744263103085,-885.56,0.00040273,2]
[357642441,1744263103094,-624.37,0.00040273,2]
[357642442,1744263103104,-500.0,0.00040273,2]
[357642443,1744263103116,-1033.25,0.00040273,2]
[357642444,1744263103126,-2525.7,0.00040273,2]
[357642445,1744263103135,-500.0,0.00040273,2]
[357642446,1744263103145,-1305.17,0.00040273,2]
[357642447,1744263103155,-151.0,0.00040273,14]
[357642448,1744263103164,-500.0,0.00040273,2]
[357642449,1744263103174,-500.0,0.00040273,2]
[357642450,1744263103184,-571.02,0.00040273,2]
[357642451,1744263103193,-500.0,0.00040273,2]
[357642452,1744263103203,-151.0,0.00040273,14]
[357642453,1744263103212,-917.16,0.00040273,2]
[357642454,1744263103222,-912.29,0.00040273,2]
[357642455,1744263103231,-500.0,0.00040273,2]
[357642456,1744263103240,-552.15,0.00040273,2]
[357642457,1744263103250,-500.0,0.00040273,2]
[357642458,1744263103260,-500.0,0.00040273,2]
[357642459,1744263103270,-500.0,0.00040273,2]
[357642460,1744263103280,-500.0,0.00040273,2]
[357642461,1744263103290,-508.79,0.00040273,2]
[357642462,1744263103299,-500.03,0.00040273,2]
[357642463,1744263103308,-1408.64,0.00040273,2]
[357642464,1744263103318,-1556.73,0.00040273,2]
[357642465,1744263103328,-1635.81,0.00040273,2]
[357642466,1744263103337,-933.27,0.00040273,2]
[357642467,1744263103346,-1187.18,0.00040273,2]
[357642468,1744263103357,-833.81,0.00040273,2]
[357642469,1744263103368,-985.06,0.00040273,2]
[357642470,1744263103379,-2294.31,0.00040273,2]
[357642471,1744263103388,-2356.85,0.00040273,2]
[357642472,1744263103398,-986.77,0.00040273,2]
[357642473,1744263103408,-1743.374356,0.00040273,2]
[357642474,1744263103418,-2875.93,0.00040273,2]
[357642475,1744263103427,-500.0,0.00040273,2]
[357642476,1744263103437,-1214.83,0.00040273,2]
[357642477,1744263103447,-1153.71,0.00040273,2]
[357642478,1744263103456,-180.186855,0.00040273,2]
[357642479,1744263103466,-957.89,0.00040273,2]
[357642480,1744263103476,-500.0,0.00040273,2]
[357642481,1744263103688,-424.322939,0.00040273,14]
[357642482,1744263103697,-4529.73,0.00040273,2]
[357642483,1744263103707,-2077.03,0.00040273,2]
[357642484,1744263103716,-500.0,0.00040273,2]
[357642485,1744263103725,-424.322939,0.00040273,14]
[357642486,1744263103734,-2584.34,0.00040273,2]
[357642487,1744263103743,-500.0,0.00040273,2]
[357642488,1744263103752,-870.1,0.00040273,2]
[357642489,1744263103762,-946.03,0.00040273,2]
[357642490,1744263103771,-1925.56,0.00040273,2]
[357642491,1744263103779,-1077.99,0.00040273,2]
[357642492,1744263103789,-500.0,0.00040273,2]
[357642493,1744263103798,-511.65,0.00040273,2]
[357642494,1744263103807,-4644.2,0.00040273,2]
[357642495,1744263103816,-633.69,0.00040273,2]
[357642496,1744263103825,-500.0,0.00040273,2]
[357642497,1744263103834,-1112.85,0.00040273,2]
[357642498,1744263103843,-1029.45,0.00040273,2]
[357642499,1744263103852,-500.0,0.00040273,2]
[357642500,1744263103863,-647.69,0.00040273,2]
[357642501,1744263103871,-3585.681999,0.00040273,2]
[357642502,1744263103881,-500.0,0.00040273,2]
[357642503,1744263103890,-2403.73,0.00040273,2]
[357642504,1744263103899,-909.21,0.00040273,2]
[357642505,1744263103908,-1120.09,0.00040273,2]
[357642506,1744263103918,-1686.73,0.00040273,2]
[357642507,1744263103927,-500.0,0.00040273,2]
[357642508,1744263103936,-879.89,0.00040273,2]
[357642509,1744263103945,-808.95,0.00040273,2]
[357642510,1744263103955,-832.56,0.00040273,2]
[357642511,1744263103964,-874.26,0.00040273,2]
[357642512,1744263103973,-1157.43,0.00040273,2]
[357642513,1744263103983,-718.2,0.00040273,2]
[357642514,1744263103992,-581.124785,0.00040273,2]
[357642515,1744263104002,-500.0,0.00040273,2]
[357642516,1744263104011,-1407.72,0.00040273,2]
[357642517,1744263104021,-1039.49,0.00040273,2]
[357642518,1744263104031,-7215.56,0.00040273,2]
[357642519,1744263104040,-500.0,0.00040273,2]
[357642520,1744263104049,-575.22,0.00040273,2]
[357642521,1744263104059,-3881.0,0.00040273,2]
[357642522,1744263104069,-1613.58,0.00040273,2]
[357642523,1744263104079,-772.7,0.00040273,2]
[357642524,1744263104090,-898.25,0.00040273,2]
[357642525,1744263104099,-500.0,0.00040273,2]
[357642526,1744263104109,-500.0,0.00040273,2]
[357642527,1744263104119,-1979.36,0.00040273,2]
[357642528,1744263104129,-8078.39,0.00040273,2]
[357642529,1744263104138,-42424.6,0.00040273,2]
[357642530,1744263104148,-690.89,0.00040273,2]
[357642531,1744263104157,-500.0,0.00040273,2]
[357642532,1744263104166,-1112.76,0.00040273,2]
[357642533,1744263104175,-1039.69,0.00040273,2]
[357642534,1744263104185,-500.0,0.00040273,2]
[357642535,1744263104195,-1185.95,0.00040273,2]
[357642536,1744263104204,-634.68,0.00040273,2]
[357642537,1744263104214,-518.49,0.00040273,2]
[357642538,1744263104223,-500.0,0.00040273,2]
[357642539,1744263104232,-1287.64,0.00040273,2]
[357642540,1744263104241,-965.31,0.00040273,2]
[357642541,1744263104251,-910.06,0.00040273,2]
[357642542,1744263104260,-1004.75,0.00040273,2]
[357642543,1744263104270,-1961.21,0.00040273,2]
[357642544,1744263104279,-500.0,0.00040273,2]
[357642545,1744263104289,-500.0,0.00040273,2]
[357642546,1744263104298,-1538.53,0.00040273,2]
[357642547,1744263104307,-599.76,0.00040273,2]
[357642548,1744263104316,-500.0,0.00040273,2]
[357642549,1744263104325,-1367.6,0.00040273,2]
[357642550,1744263104335,-500.0,0.00040273,2]
[357642551,1744263104344,-877.44,0.00040273,2]
[357642552,1744263104353,-991.6,0.00040273,2]
[357642553,1744263104363,-2578.25,0.00040273,2]
[357642554,1744263104373,-693.73,0.00040273,2]
[357642555,1744263104385,-500.0,0.00040273,2]
[357642556,1744263104394,-629.13,0.00040273,2]
[357642557,1744263104404,-500.0,0.00040273,2]
[357642558,1744263104415,-685.43,0.00040273,2]
[357642559,1744263104425,-500.0,0.00040273,2]
[357642560,1744263104434,-1216.37,0.00040273,2]
[357642561,1744263104443,-500.0,0.00040273,2]
[357642562,1744263104458,-500.0,0.00040273,2]
[357642563,1744263104467,-1214.66,0.00040273,2]
[357642564,1744263104476,-500.0,0.00040273,2]
[357642565,1744263104486,-4565.3,0.00040273,2]
[357642566,1744263104496,-1048.07,0.00040273,2]
[357642567,1744263104505,-500.0,0.00040273,2]
[357642568,1744263104516,-1039.16,0.00040273,2]
[357642569,1744263104525,-1216.68,0.00040273,2]
[357642570,1744263104535,-500.0,0.00040273,2]
[357642571,1744263104545,-1205.91,0.00040273,2]
[357642572,1744263104555,-2916.32,0.00040273,2]
[357642573,1744263104564,-4891.3,0.00040273,2]
[357642574,1744263104573,-2357.14,0.00040273,2]
[357642575,1744263104583,-632.73,0.00040273,2]
[357642576,1744263104592,-1190.59,0.00040273,2]
[357642577,1744263104601,-500.0,0.00040273,2]
[357642578,1744263104611,-757.09,0.00040273,2]
[357642579,1744263104620,-603.06,0.00040273,2]
[357642580,1744263104630,-812.34,0.00040273,2]
[357642581,1744263104640,-573.66,0.00040273,2]
[357642582,1744263104649,-23785.76,0.00040273,2]
[357642583,1744263104659,-500.0,0.00040273,2]
[357642584,1744263104669,-2083.77,0.00040273,2]
[357642585,1744263104679,-1281.13,0.00040273,2]
[357642586,1744263104688,-500.0,0.00040273,2]
[357642587,1744263104698,-1005.53,0.00040273,2]
[357642588,1744263104707,-745.91,0.00040273,2]
[357642589,1744263104717,-2143.43,0.00040273,2]
[357642590,1744263104727,-1089.01,0.00040273,2]
[357642591,1744263104736,-1159.32,0.00040273,2]
[357642592,1744263104746,-573.78,0.00040273,2]
[357642593,1744263104755,-500.0,0.00040273,2]
[357642594,1744263104765,-646.02,0.00040273,2]
[357642595,1744263104774,-500.0,0.00040273,2]
[357642596,1744263104783,-566.91,0.00040273,2]
[357642597,1744263104792,-1218.11,0.00040273,2]
[357642598,1744263104802,-500.0,0.00040273,2]
[357642599,1744263104811,-500.0,0.00040273,2]
[357642600,1744263104820,-29122.28,0.00040273,2]
[357642601,1744263104829,-500.0,0.00040273,2]
[357642602,1744263104838,-500.0,0.00040273,2]
[357642603,1744263104847,-865.9,0.00040273,2]
[357642604,1744263104858,-516.84,0.00040273,2]
[357642605,1744263104867,-500.0,0.00040273,2]
[357642606,1744263104877,-695.78,0.00040273,2]
[357642607,1744263104886,-819.97,0.00040273,2]
[357642608,1744263104896,-2739.29,0.00040273,2]
[357642609,1744263104905,-1018.51,0.00040273,2]
[357642610,1744263104915,-500.0,0.00040273,2]
[357642611,1744263104924,-575.63,0.00040273,2]
[357642612,1744263104934,-500.0,0.00040273,2]
[357642613,1744263104943,-500.0,0.00040273,2]
[357642614,1744263104953,-1378.7,0.00040273,2]
[357642615,1744263104963,-1133.4,0.00040273,2]
[357642616,1744263104973,-500.0,0.00040273,2]
[357642617,1744263104983,-500.0,0.00040273,2]
[357642618,1744263104992,-832.63,0.00040273,2]
[357642619,1744263105002,-21395.75,0.00040273,2]
[357642620,1744263105011,-500.0,0.00040273,2]
[357642621,1744263105021,-500.0,0.00040273,2]
[357642622,1744263105031,-500.0,0.00040273,2]
[357642623,1744263105040,-500.0,0.00040273,2]
[357642624,1744263105050,-551.83999938,0.00040273,2]
[357642625,1744263105059,-2087.42,0.00040273,2]
[357642626,1744263105069,-1170.86,0.00040273,2]
[357642627,1744263105078,-3014.44,0.00040273,2]
[357642628,1744263105087,-500.0,0.00040273,2]
[357642629,1744263105097,-167266.55,0.00040273,2]
[357642630,1744263105108,-2641.61,0.00040273,2]
[357642631,1744263105117,-1973.41,0.00040273,2]
[357642632,1744263105127,-500.0,0.00040273,2]
[357642633,1744263105136,-514.89,0.00040273,2]
[357642634,1744263105145,-500.0,0.00040273,2]
[357642635,1744263105155,-573.09,0.00040273,2]
[357642636,1744263105164,-4651.38,0.00040273,2]
[357642637,1744263105174,-500.0,0.00040273,2]
[357642638,1744263105184,-1570.69,0.00040273,2]
[357642639,1744263105194,-500.0,0.00040273,2]
[357642640,1744263105203,-500.0,0.00040273,2]
[357642641,1744263105212,-1967.15,0.00040273,2]
[357642642,1744263105222,-500.0,0.00040273,2]
[357642643,1744263105231,-973.2,0.00040273,2]
[357642644,1744263105241,-500.0,0.00040273,2]
[357642645,1744263105250,-163.286,0.00040273,2]
[357642646,1744263105261,-1133.28,0.00040273,2]
[357642647,1744263105271,-500.0,0.00040273,2]
[357642648,1744263105280,-552.73,0.00040273,2]
[357642649,1744263105289,-1290.575287,0.00040273,2]
[357642650,1744263105299,-535.78,0.00040273,2]
[357642651,1744263105308,-151.0,0.00040273,14]
[357642652,1744263105317,-1438.14,0.00040273,2]
[357642653,1744263105327,-500.0,0.00040273,2]
[357642654,1744263105336,-987.76,0.00040273,2]
[357642655,1744263105346,-878.74,0.00040273,2]
[357642656,1744263105355,-290.713803,0.00040273,14]
[357642657,1744263105366,-218.23007843,0.00040365,28]
[357642658,1744263105379,-1000.0,0.00040479,5]
[357642659,1744263105388,-150.0,0.00040546,3]
[357642660,1744263105398,-500.0,0.00040547,2]
[357642661,1744263105407,-500.0,0.00040547,2]
[357642662,1744263105419,-500.0,0.00040547,2]
[357642663,1744263105428,-1057.12,0.00040547,2]
[357642664,1744263105438,-500.0,0.00040547,2]
[357642665,1744263105447,-648.87,0.00040547,2]
[357642666,1744263105457,-946.59,0.00040547,2]
[357642667,1744263105467,-500.0,0.00040547,2]
[357642668,1744263105476,-534.85,0.00040547,2]
[357642669,1744263105486,-500.0,0.00040547,2]
[357642670,1744263105495,-641.6,0.00040547,2]
[357642671,1744263105505,-500.0,0.00040547,2]
[357642672,1744263105515,-500.0,0.00040547,2]
[357642673,1744263105524,-500.0,0.00040547,2]
[357642674,1744263105534,-705.12,0.00040547,2]
[357642675,1744263105545,-500.0,0.00040547,2]
[357642676,1744263105554,-500.0,0.00040547,2]
[357642677,1744263105563,-643.93,0.00040547,2]
[357642678,1744263105573,-500.0,0.00040547,2]
[357642679,1744263105582,-848.85,0.00040547,2]
[357642680,1744263105591,-644.23,0.00040547,2]
[357642681,1744263105600,-784.44,0.00040547,2]
[357642682,1744263105611,-500.0,0.00040547,2]
[357642683,1744263105621,-892.08,0.00040547,2]
[357642684,1744263105630,-500.0,0.00040547,2]
[357642685,1744263105640,-529.26,0.00040547,2]
[357642686,1744263105649,-521.54,0.00040547,2]
[357642687,1744263105658,-721.04,0.00040547,2]
[357642688,1744263105667,-524.04,0.00040547,2]
[357642689,1744263105676,-500.0,0.00040547,2]
[357642690,1744263105686,-500.0,0.00040547,2]
[357642691,1744263105695,-500.0,0.00040547,2]
[357642692,1744263105705,-506.89,0.00040547,2]
[357642693,1744263105714,-500.0,0.00040547,2]
[357642694,1744263105724,-600.37,0.00040547,2]
[357642695,1744263105733,-540.97,0.00040547,2]
[357642696,1744263105742,-500.0,0.00040547,2]
[357642697,1744263105752,-346.2,0.00040547,2]
[357642698,1744263105761,-500.0,0.00040547,2]
[357642699,1744263105771,-500.0,0.00040547,2]
[357642700,1744263105780,-500.0,0.00040547,2]
[357642701,1744263105790,-409.06707988,0.00040547,2]
[357642702,1744263105799,-500.0,0.00040547,2]
[357642703,1744263105809,-564.45,0.00040547,2]
[357642704,1744263105818,-639.34,0.00040547,2]
[357642705,1744263105828,-732.06,0.00040547,2]
[357642706,1744263105838,-1095.5,0.00040547,2]
[357642707,1744263105848,-680.52,0.00040547,2]
[357642708,1744263105857,-713.03,0.00040547,2]
[357642709,1744263105867,-500.0,0.00040547,2]
[357642710,1744263106044,-500.0,0.00040547,2]
[357642711,1744263106054,-500.0,0.00040547,2]
[357642712,1744263106063,-500.0,0.00040547,2]
[357642713,1744263106073,-500.0,0.00040547,2]
[357642714,1744263106083,-500.0,0.00040547,2]
[357642715,1744263106092,-953.15,0.00040547,2]
[357642716,1744263106102,-500.0,0.00040547,2]
[357642717,1744263106112,-733.83,0.00040547,2]
[357642718,1744263106122,-500.0,0.00040547,2]
[357642719,1744263106131,-500.0,0.00040547,2]
[357642720,1744263106141,-500.0,0.00040547,2]
[357642721,1744263106150,-500.0,0.00040547,2]
[357642722,1744263106160,-500.0,0.00040547,2]
[357642723,1744263106169,-500.0,0.00040547,2]
[357642724,1744263106179,-1006.39,0.00040547,2]
[357642725,1744263106188,-500.0,0.00040547,2]
[357642726,1744263106198,-500.0,0.00040547,2]
[357642727,1744263106207,-500.0,0.00040547,2]
[357642728,1744263106216,-500.0,0.00040547,2]
[357642729,1744263106226,-773.01,0.00040547,2]
[357642730,1744263106236,-769.58,0.00040547,2]
[357642731,1744263106246,-1427.56,0.00040547,2]
[357642732,1744263106255,-500.0,0.00040547,2]
[357642733,1744263106265,-500.0,0.00040547,2]
[357642734,1744263106274,-541.16,0.00040547,2]
[357642735,1744263106284,-500.0,0.00040547,2]
[357642736,1744263106293,-1299.27,0.00040547,2]
[357642737,1744263106302,-500.0,0.00040547,2]
[357642738,1744263106311,-284.51065823,0.00040547,2]